bitfinex/quotes_ETHUSD_20250519
["timestamp","ask_amount","ask_price","bid_price","bid_amount"]
[1747680558770,4.00705241,2495.6,2495.5,17.342]
[1747680559488,4.00705241,2495.6,2495.5,9.342]
[1747680560495,4.00721298,2495.5,2495.4,8.0]
[1747680560793,4.00721298,2495.5,2495.4,17.342]
[1747680561481,4.00721298,2495.5,2495.4,9.342]
[1747680562493,1.6269,2496.1,2495.4,20.15325]
[1747680562694,4.00697285,2495.7,2495.5,8.0]
[1747680563023,1.6515,2496.4,2495.7,8.0]
[1747680563251,4.10511672,2496.9,2495.8,1.4685]
[1747680563252,1.6055,2496.8,2495.8,1.4685]
[1747680563409,4.00561422,2496.5,2496.1,1.4685]
[1747680563608,4.00564299,2496.5,2496.3,8.0]
[1747680563792,4.00564299,2496.5,2496.4,9.342]
[1747680564117,4.0057683,2496.4,2496.3,8.0]
[1747680564324,4.0057683,2496.4,2496.3,17.341]
[1747680565819,5.6704683,2496.4,2496.3,9.341]
[1747680566123,6.63807943,2496.4,2496.3,9.341]
[1747680566420,4.00624974,2496.1,2495.7,1.4685]
[1747680566618,4.00641025,2496.0,2495.9,8.0]
[1747680566786,4.00641025,2496.0,2495.9,17.34]
[1747680567012,4.00708495,2495.6,2495.2,1.4685]
[1747680567215,4.00737356,2495.4,2495.3,26.638]
[1747680567419,4.00737356,2495.4,2495.3,34.638]
[1747680568170,4.00737356,2495.4,2495.3,26.638]
[1747680568455,5.20954071,2495.4,2495.3,26.638]
[1747680569015,5.20954071,2495.4,2495.3,17.298]
[1747680569249,5.20954071,2495.4,2495.3,26.638]
[1747680570353,4.00737356,2495.4,2495.3,26.638]
[1747680571411,6.15147356,2495.4,2495.3,26.638]
[1747680573016,4.00737356,2495.4,2495.3,26.638]
[1747680576220,4.55737356,2495.4,2495.3,26.575]
[1747680576756,4.00737356,2495.4,2495.3,17.298]
[1747680577049,5.20954071,2495.4,2495.3,26.575]
[1747680577951,4.00737356,2495.4,2495.3,26.575]
[1747680579419,4.00737356,2495.4,2495.3,17.298]
[1747680579420,4.55737356,2495.4,2495.3,17.298]
[1747680579625,4.00849801,2494.7,2494.6,25.302]
[1747680579854,4.00849801,2494.7,2494.6,26.579]
[1747680580176,4.55849801,2494.7,2494.6,17.302]
[1747680580378,5.58133516,2494.7,2494.6,9.277]
[1747680580871,6.06580157,2494.2,2494.1,0.1]
[1747680583261,6.06580157,2494.2,2494.1,9.379]
[1747680583430,7.51524815,2494.2,2494.1,9.379]
[1747680583831,7.51524815,2494.2,2494.1,0.1]
[1747680588464,6.96524815,2494.2,2494.1,0.1]
[1747680588764,4.00930157,2494.2,2494.1,0.1]
[1747680592175,4.00930157,2494.2,2494.1,1.5685]
[1747680592847,4.00930157,2494.2,2494.1,9.381]
[1747680593067,4.00923442,2494.3,2494.2,9.4685]
[1747680594451,4.00905959,2494.4,2494.2,11.35345]
[1747680594774,4.00914084,2494.3,2494.2,11.35345]
[1747680594934,4.00906992,2494.4,2494.2,20.63445]
[1747680595141,4.00903381,2494.4,2494.2,20.63445]
[1747680595479,4.00914084,2494.3,2494.2,20.63445]
[1747680595964,4.00914084,2494.3,2494.2,18.7495]
[1747680596636,4.00914084,2494.3,2494.2,8.0]
[1747680596839,4.00914084,2494.3,2494.2,9.281]
[1747680597264,4.00907585,2494.4,2494.2,9.281]
[1747680597662,4.00914084,2494.3,2494.2,9.281]
[1747680597904,4.00914084,2494.3,2494.1,0.1]
[1747680597905,4.00930157,2494.2,2494.1,0.1]
[1747680598101,4.00930157,2494.2,2494.1,9.381]
[1747680598439,4.00930157,2494.2,2494.1,0.1]
[1747680598734,4.00930157,2494.2,2494.1,9.381]
[1747680599365,1.5496,2495.0,2494.1,31.314419]
[1747680599695,4.00785539,2495.1,2494.2,12.00922134]
[1747680599895,4.00865128,2494.7,2494.2,12.00922134]
[1747680600293,4.00881243,2494.6,2494.2,8.0]
[1747680600491,4.0088194,2494.5,2494.3,2.5674078]
[1747680600668,4.00930157,2494.2,2494.1,12.38365]
[1747680600867,4.00930157,2494.2,2494.1,13.66465]
[1747680601104,4.00930157,2494.2,2494.1,21.66465]
[1747680601872,4.00833734,2494.8,2494.1,21.66465]
[1747680602203,4.00904991,2494.4,2494.1,21.66465]
[1747680602403,4.00904991,2494.4,2494.2,2.166465]
[1747680602609,4.00914084,2494.3,2494.2,11.447465]
[1747680602812,4.00914084,2494.3,2494.2,9.281]
[1747680603670,4.55914084,2494.3,2494.1,0.1]
[1747680603874,4.55930157,2494.2,2494.1,0.1]
[1747680604074,4.55930157,2494.2,2494.1,9.381]
[1747680604410,4.00930157,2494.2,2494.1,9.381]
[1747680605603,7.00184581,2494.2,2494.1,9.32]
[1747680606801,7.00184581,2494.2,2494.1,0.1]
[1747680608608,7.22254526,2494.2,2494.1,0.1]
[1747680609367,15.00184581,2494.2,2494.1,0.1]
[1747680611228,15.22263566,2494.2,2494.1,0.1]
[1747680611375,4.23009142,2494.2,2494.1,0.1]
[1747680611813,4.78009142,2494.2,2494.1,0.1]
[1747680611978,4.23009142,2494.2,2494.1,0.1]
[1747680612189,4.55930157,2494.2,2494.1,0.1]
[1747680612586,13.41614581,2494.2,2494.1,0.1]
[1747680612899,15.02284581,2494.2,2494.1,0.1]
[1747680614403,4.00930157,2494.2,2494.1,0.1]
[1747680616518,4.0089404,2494.5,2494.1,35.393532]
[1747680616713,4.00914084,2494.3,2494.2,1.4685]
[1747680616917,4.0090505,2494.4,2494.2,10.6905]
[1747680617158,4.00894666,2494.5,2494.2,10.6905]
[1747680617289,4.00881137,2494.6,2494.3,2.81035]
[1747680617489,4.00875574,2494.6,2494.4,1.4685]
[1747680617940,4.00858539,2494.7,2494.5,16.532074]
[1747680618227,4.00858539,2494.7,2494.4,1.4685]
[1747680618600,4.00842392,2494.8,2494.4,1.4685]
[1747680618908,4.00842392,2494.8,2494.5,0.427885]
[1747680619112,4.00852723,2494.7,2494.5,0.427885]
[1747680620298,4.00842729,2494.8,2494.5,0.427885]
[1747680620699,4.00851021,2494.7,2494.5,0.427885]
[1747680622018,4.00836032,2494.8,2494.5,0.427885]
[1747680622197,4.00787962,2495.1,2494.5,0.427885]
[1747680622397,4.0086587,2494.6,2494.5,0.427885]
[1747680623139,4.0086587,2494.6,2494.5,2.966885]
[1747680623340,4.00857704,2494.7,2494.5,2.966885]
[1747680623537,1.5444,2495.4,2494.6,0.4435385]
[1747680623830,4.00753416,2495.3,2494.7,9.219]
[1747680624033,4.00831172,2494.9,2494.7,9.219]
[1747680624240,4.00833734,2494.8,2494.7,9.219]
[1747680625399,4.0088194,2494.5,2494.4,1.4685]
[1747680625604,4.0088194,2494.5,2494.4,11.115385]
[1747680625807,4.00845269,2494.8,2494.4,13.690685]
[1747680626114,4.00845269,2494.8,2494.4,11.115385]
[1747680626331,4.00807823,2495.0,2494.4,11.115385]
[1747680626332,4.00850988,2494.7,2494.4,11.115385]
[1747680626505,4.00850988,2494.7,2494.5,2.04091]
[1747680626705,4.00830213,2494.9,2494.6,1.3156295]
[1747680626929,4.00833748,2494.8,2494.6,1.3156295]
[1747680627229,4.00849801,2494.7,2494.6,1.3156295]
[1747680627432,4.00849801,2494.7,2494.6,10.5346295]
[1747680627957,4.00834027,2494.8,2494.1,21.42236415]
[1747680627958,4.0088194,2494.5,2494.1,18.8815]
[1747680628161,4.00930157,2494.2,2494.1,18.8815]
[1747680628302,4.00930157,2494.2,2494.1,28.1005]
[1747680628711,4.00930157,2494.2,2494.1,26.632]
[1747680629005,4.0092303,2494.3,2494.1,29.44205]
[1747680630340,4.00930157,2494.2,2494.1,29.44205]
[1747680631336,1.5924,2494.9,2494.1,29.44205]
[1747680631538,4.00930157,2494.2,2494.1,29.44205]
[1747680631907,4.00849801,2494.7,2494.1,29.44205]
[1747680632103,4.00908575,2494.4,2494.2,2.944205]
[1747680632303,4.00914084,2494.3,2494.2,2.944205]
[1747680632533,5.60071125,2494.9,2494.2,16.682171]
[1747680632736,4.00879707,2494.6,2494.3,1.4685]
[1747680633332,4.00881964,2494.5,2494.3,1.4685]
[1747680633528,4.00862808,2494.7,2494.4,0.4412705]
[1747680633737,4.00862808,2494.7,2494.4,0.4813553]
[1747680633950,4.00868196,2494.6,2494.4,0.4813553]
[1747680634154,4.00852073,2494.7,2494.5,3.323]
[1747680634463,4.00778321,2495.2,2494.7,1.4685]
[1747680634763,2.21201752,2496.1,2495.1,8.0]
[1747680635052,4.00737356,2495.4,2495.3,8.0]
[1747680635347,4.00753416,2495.3,2495.2,25.308]
[1747680635551,4.00753416,2495.3,2495.2,37.20465]
[1747680635749,4.00753416,2495.3,2495.2,27.98565]
[1747680635930,4.00753416,2495.3,2495.2,37.14565]
[1747680636534,4.00753416,2495.3,2495.2,39.79165]
[1747680636739,4.00753416,2495.3,2495.2,37.14565]
[1747680637050,4.00753416,2495.3,2495.2,39.49965]
[1747680637457,4.0071979,2495.6,2495.3,8.0]
[1747680637663,4.0071979,2495.6,2495.3,12.0981927]
[1747680637952,4.00721298,2495.5,2495.4,1.4685]
[1747680638534,4.00753416,2495.3,2495.2,25.308]
[1747680638733,4.00753416,2495.3,2495.2,34.468]
[1747680639562,4.00753416,2495.3,2495.2,26.467]
[1747680639731,4.80902493,2495.3,2495.2,26.467]
[1747680643169,4.80902493,2495.3,2494.2,0.19973138]
[1747680643170,4.00914084,2494.3,2494.2,1.4685]
[1747680643467,4.00914084,2494.3,2494.2,27.9315]
[1747680643865,4.00914084,2494.3,2494.2,35.9315]
[1747680644369,5.51619869,2495.3,2494.3,12.00905849]
[1747680644568,4.00834202,2494.8,2494.5,8.0]
[1747680644772,4.00863578,2494.7,2494.5,8.0]
[1747680645082,4.00914084,2494.3,2494.2,26.7725]
[1747680645368,4.00914084,2494.3,2494.2,26.463]
[1747680646357,4.00914084,2494.3,2494.2,17.304]
[1747680646558,4.81095628,2494.3,2494.2,26.463]
[1747680647145,4.00914084,2494.3,2494.2,26.463]
[1747680647576,10.28604435,2494.3,2494.2,17.304]
[1747680647746,4.55930157,2494.2,2494.1,9.259]
[1747680647943,6.12470157,2494.2,2494.1,0.1]
[1747680648182,7.95513752,2494.2,2494.1,0.1]
[1747680649522,15.95513752,2494.2,2493.5,17.305]
[1747680649693,15.95513752,2494.2,2493.5,26.465]
[1747680649694,6.12566628,2493.6,2493.5,26.465]
[1747680649872,6.12566628,2493.6,2493.5,17.305]
[1747680650572,3.46273595,2494.2,2493.5,17.305]
[1747680650774,4.00992155,2493.9,2493.6,9.5086017]
[1747680651011,4.00969598,2494.0,2493.8,8.0]
[1747680651174,4.00978387,2493.9,2493.8,8.0]
[1747680651376,4.00978387,2493.9,2493.8,17.162]
[1747680653200,4.00964459,2494.0,2493.8,26.006979]
[1747680653375,4.00978387,2493.9,2493.8,19.9095479]
[1747680653587,4.00978387,2493.9,2493.8,22.3973779]
[1747680653791,4.00978387,2493.9,2493.8,19.9095479]
[1747680654119,4.00978387,2493.9,2493.8,17.162]
[1747680654327,4.00978387,2493.9,2493.8,9.162]
[1747680656933,4.01026628,2493.6,2493.5,26.468]
[1747680657436,5.53486628,2493.6,2493.5,26.468]
[1747680657634,6.08486628,2493.6,2493.5,26.468]
[1747680657797,7.53723967,2493.6,2493.5,26.468]
[1747680659113,4.01090967,2493.2,2493.1,0.1]
[1747680659333,4.01090967,2493.2,2493.1,9.263]
[1747680660595,4.56090967,2493.2,2493.1,9.264]
[1747680660929,4.86807888,2493.2,2493.1,9.264]
[1747680661130,4.01090967,2493.2,2493.1,10.7325]
[1747680661333,4.01090967,2493.2,2493.1,9.264]
[1747680661512,4.01090967,2493.2,2493.1,0.1]
[1747680661713,4.01090967,2493.2,2493.1,9.264]
[1747680662431,4.01090967,2493.2,2493.1,17.264]
[1747680663797,4.01090967,2493.2,2493.1,9.264]
[1747680664102,4.01090967,2493.2,2493.1,0.1]
[1747680664536,4.01090967,2493.2,2493.1,9.264]
[1747680665041,4.0107638,2493.3,2493.2,8.0]
[1747680665200,4.01090967,2493.2,2493.1,9.264]
[1747680665698,4.01083,2493.3,2493.2,8.0]
[1747680665901,4.01059696,2493.4,2493.2,8.0]
[1747680666130,4.0107488,2493.3,2493.2,8.0]
[1747680666430,2.1941,2493.9,2493.2,8.0]
[1747680666431,4.01069558,2493.4,2493.2,8.0]
[1747680666637,4.01058795,2493.4,2493.3,1.4685]
[1747680666837,5.53479959,2494.4,2493.3,30.28624552]
[1747680666999,4.01004844,2493.8,2493.3,5.47913454]
[1747680667403,4.01004844,2493.8,2493.5,8.0]
[1747680667752,4.00994466,2493.8,2493.7,8.0]
[1747680667962,4.01010546,2493.7,2493.6,9.107]
[1747680668102,4.00994466,2493.8,2493.6,9.107]
[1747680668302,4.01010546,2493.7,2493.6,9.107]
[1747680674643,4.01090967,2493.2,2493.1,8.1]
[1747680674812,4.01090967,2493.2,2493.1,17.207]
[1747680676038,4.01090967,2493.2,2493.1,8.1]
[1747680676246,4.01090967,2493.2,2493.1,17.207]
[1747680676445,1.6529,2494.0,2493.1,20.80565]
[1747680676748,4.00978387,2493.9,2493.3,9.4685]
[1747680676951,4.00969271,2494.0,2493.5,1.4685]
[1747680677244,4.00882036,2494.5,2493.7,8.0]
[1747680679115,4.00978592,2493.9,2493.7,8.0]
[1747680679321,4.00938435,2494.2,2493.8,1.4685]
[1747680679521,4.00947317,2494.1,2494.0,8.0]
[1747680679708,4.00947317,2494.1,2494.0,17.107]
[1747680679926,4.00947317,2494.1,2494.0,19.50697279]
[1747680680429,4.00934568,2494.2,2494.0,19.50697279]
[1747680681255,4.00946233,2494.1,2494.0,17.107]
[1747680681421,4.00946233,2494.1,2494.0,9.107]
[1747680681617,4.00962309,2494.0,2493.9,17.314]
[1747680681828,4.00962309,2494.0,2493.9,26.42]
[1747680683669,4.00962309,2494.0,2493.9,17.314]
[1747680683848,5.21246422,2494.0,2493.9,26.42]
[1747680684364,1.20284113,2494.0,2493.3,1.4685]
[1747680684529,4.01090967,2493.2,2493.1,0.1]
[1747680684734,4.01090967,2493.2,2493.1,17.413]
[1747680684965,4.01090967,2493.2,2493.1,9.206]
[1747680685138,4.01090967,2493.2,2493.1,0.1]
[1747680685462,4.01090967,2493.2,2493.1,9.206]
[1747680687537,4.01090967,2493.2,2493.1,0.1]
[1747680687867,4.01090967,2493.2,2493.1,9.207]
[1747680688460,4.01084048,2493.3,2493.1,9.207]
[1747680688761,4.01068625,2493.4,2493.2,3.1892]
[1747680688963,4.01058795,2493.4,2493.3,8.0]
[1747680689462,4.01051494,2493.5,2493.3,8.0]
[1747680689967,4.01058795,2493.4,2493.3,8.0]
[1747680691655,4.0107488,2493.3,2493.2,9.4685]
[1747680691825,4.0107488,2493.3,2493.2,13.94133]
[1747680692022,4.01090967,2493.2,2493.1,0.1]
[1747680692360,4.01090967,2493.2,2493.1,9.207]
[1747680692564,4.01090967,2493.2,2493.1,0.1]
[1747680692565,5.2141378,2493.2,2493.1,0.1]
[1747680692859,5.2141378,2493.2,2493.1,9.207]
[1747680693033,5.7641378,2493.2,2493.1,9.207]
[1747680693238,7.4285378,2493.2,2493.1,9.207]
[1747680695271,4.01090967,2493.2,2493.1,9.207]
[1747680695430,4.0077483,2493.2,2493.1,9.207]
[1747680697163,4.5577483,2493.2,2493.1,0.1]
[1747680697466,6.1988483,2493.2,2493.1,9.152]
[1747680697825,6.1988483,2493.2,2493.1,0.1]
[1747680698030,8.03748674,2493.2,2493.1,9.152]
[1747680699464,8.03748674,2493.2,2493.1,0.1]
[1747680699631,8.03748674,2493.2,2493.1,9.153]
[1747680700352,7.48748674,2493.2,2493.1,9.153]
[1747680700557,5.6488483,2493.2,2493.1,9.153]
[1747680702366,4.0077483,2493.2,2493.1,9.153]
[1747680704343,4.0077483,2493.2,2493.1,0.1]
[1747680704543,4.0077483,2493.2,2493.1,9.153]
[1747680707686,4.0077483,2493.2,2493.1,0.1]
[1747680707840,4.0077483,2493.2,2493.1,9.153]
[1747680711582,4.0077483,2493.2,2493.1,0.1]
[1747680711757,4.0077483,2493.2,2493.1,9.153]
[1747680717186,9.52576244,2493.2,2493.1,9.153]
[1747680717387,19.06436244,2493.2,2493.1,0.1]
[1747680717588,29.42588624,2493.2,2493.1,0.1]
[1747680718298,29.42588624,2493.2,2491.8,2.09530501]
[1747680718299,12.01235806,2492.3,2492.2,9.053]
[1747680718596,13.55095806,2492.3,2492.2,9.053]
[1747680718890,16.18009363,2492.3,2492.2,9.053]
[1747680719100,12.56251905,2492.2,2491.8,0.62680501]
[1747680719397,12.56251905,2492.2,2492.0,9.053]
[1747680719853,12.56251905,2492.2,2491.8,0.62680501]
[1747680720051,12.56251905,2492.2,2492.0,9.055]
[1747680720487,18.32628348,2492.2,2491.6,9.055]
[1747680720793,18.32628348,2492.2,2491.3,0.66666667]
[1747680720794,4.56380749,2491.4,2491.3,0.66666667]
[1747680720950,13.17994824,2491.4,2491.3,0.66666667]
[1747680721158,12.01380749,2491.4,2491.3,0.66666667]
[1747680721858,4.01380749,2491.4,2491.3,0.66666667]
[1747680722786,16.72997192,2491.4,2491.3,0.66666667]
[1747680722959,18.37297192,2491.4,2491.3,0.66666667]
[1747680724756,4.56396861,2491.3,2491.2,0.66666667]
[1747680725003,7.26177771,2491.3,2491.2,0.66666667]
[1747680726069,7.26177771,2491.3,2491.2,9.72466667]
[1747680726266,7.26177771,2491.3,2491.2,0.66666667]
[1747680726473,15.26177771,2491.3,2491.2,0.66666667]
[1747680726979,25.40177771,2491.3,2491.2,0.66666667]
[1747680729166,14.11172973,2491.2,2491.1,0.1]
[1747680729361,4.0157417,2490.2,2490.1,0.1]
[1747680732587,4.01562511,2490.3,2490.1,1.6005]
[1747680732779,4.01572889,2490.3,2490.1,1.6005]
[1747680732975,4.01548848,2490.4,2490.1,2.66496562]
[1747680733288,18.8095886,2491.2,2490.1,2.66496562]
[1747680733289,4.01488015,2490.8,2490.3,9.5005]
[1747680733488,4.01500776,2490.7,2490.4,26.337]
[1747680733697,4.01522473,2490.6,2490.4,26.337]
[1747680733862,4.01525798,2490.5,2490.4,34.337]
[1747680734071,4.0151801,2490.6,2490.4,38.4351927]
[1747680734396,4.01525798,2490.5,2490.4,17.332]
[1747680734600,4.01525798,2490.5,2490.4,26.337]
[1747680735200,6.2229417,2490.2,2490.1,0.1]
[1747680735500,7.6483392,2490.2,2490.1,0.1]
[1747680735700,15.94888816,2490.2,2490.1,0.1]
[1747680736970,4.01735497,2489.2,2488.1,0.1]
[1747680737169,4.56735497,2489.2,2489.0,9.005]
[1747680737370,5.9942384,2489.2,2489.0,9.005]
[1747680737992,7.5123384,2489.2,2488.5,17.332]
[1747680738200,7.5123384,2489.2,2488.5,26.339]
[1747680738973,15.5123384,2489.2,2488.5,26.339]
[1747680739811,19.95781783,2489.2,2488.5,26.339]
[1747680740701,19.95781783,2489.2,2488.1,0.1]
[1747680740904,19.95781783,2489.2,2488.3,9.007]
[1747680745487,4.56864651,2488.4,2488.3,9.007]
[1747680745706,4.56896953,2488.2,2488.1,0.1]
[1747680746011,4.56896953,2488.2,2488.1,9.112]
[1747680746925,4.56896953,2488.2,2488.1,0.1]
[1747680747129,12.56896953,2488.2,2488.1,0.1]
[1747680747311,18.59064896,2488.2,2488.1,0.1]
[1747680747513,4.02058539,2487.2,2487.1,0.1]
[1747680747824,4.57058539,2487.2,2487.1,0.1]
[1747680748023,4.86747602,2487.2,2487.1,0.1]
[1747680749099,4.02058539,2487.2,2487.1,0.1]
[1747680749422,4.02058539,2487.2,2487.1,1.7607]
[1747680750227,5.37468935,2487.2,2487.1,0.1]
[1747680751238,4.57058539,2487.2,2487.1,0.1]
[1747680751603,6.38496079,2487.2,2487.1,0.1]
[1747680752712,4.86636079,2487.2,2487.1,0.1]
[1747680753106,4.86636079,2487.2,2487.1,9.117]
[1747680755435,4.86636079,2487.2,2487.1,0.1]
[1747680755655,6.19959023,2487.2,2487.1,0.1]
[1747680756001,6.19959023,2487.2,2487.1,0.09683862]
[1747680757135,7.83329023,2487.2,2487.1,0.09683862]
[1747680759820,15.83329023,2487.2,2487.1,0.09683862]
[1747680760022,4.57220255,2486.2,2486.1,0.1]
[1747680760408,6.03954812,2486.2,2486.1,0.1]
[1747680761555,6.03954812,2486.2,2486.1,0.05]
[1747680761721,4.02220255,2486.2,2486.1,0.05]
[1747680763249,4.02183489,2486.5,2486.2,1.5647]
[1747680763250,4.02179792,2486.5,2486.2,1.5647]
[1747680763415,4.02179101,2486.5,2486.3,8.976]
[1747680763617,4.02187902,2486.4,2486.3,18.83507]
[1747680764119,4.02181114,2486.5,2486.3,18.83507]
[1747680764120,4.02179945,2486.5,2486.3,18.83507]
[1747680764320,4.0213402,2486.8,2486.4,9.6276]
[1747680764542,4.02144196,2486.7,2486.4,9.6276]
[1747680765252,4.02155553,2486.6,2486.5,1.6565]
[1747680766131,4.02145904,2486.7,2486.5,3.705657]
[1747680766328,4.01989903,2487.7,2486.7,1.5822]
[1747680766637,4.02112732,2486.9,2486.8,8.976]
[1747680766954,4.02112732,2486.9,2486.8,26.338]
[1747680767336,4.02112732,2486.9,2486.8,37.93002]
[1747680767539,4.02065865,2487.2,2486.9,1.6069]
[1747680767746,4.02069666,2487.2,2486.9,9.6069]
[1747680767919,4.01913106,2488.1,2487.0,1.5769]
[1747680768114,4.02005222,2487.6,2487.0,9.5769]
[1747680768315,4.02027193,2487.4,2487.1,1.35979174]
[1747680768521,4.02042375,2487.3,2487.2,9.5769]
[1747680768848,4.02042375,2487.3,2487.2,18.5529]
[1747680771158,4.0202635,2487.4,2487.2,18.5529]
[1747680771357,0.55,2487.9,2487.2,18.5529]
[1747680771557,4.01864651,2488.4,2487.4,9.5629]
[1747680771861,4.0196922,2487.8,2487.6,1.5629]
[1747680772047,4.0196922,2487.8,2487.7,34.335]
[1747680772757,4.0196922,2487.8,2487.7,17.36]
[1747680772929,4.0196922,2487.8,2487.7,26.335]
[1747680773126,4.02026212,2487.4,2487.3,1.585]
[1747680773350,4.02013471,2487.5,2486.4,1.5825]
[1747680773351,4.02131467,2486.8,2486.4,1.5825]
[1747680773550,4.02131467,2486.8,2486.6,1.5825]
[1747680773855,4.02131467,2486.8,2486.6,9.5825]
[1747680774060,4.02131467,2486.8,2486.7,3.59175]
[1747680774256,4.02116144,2486.9,2486.8,8.0]
[1747680774422,4.0212321,2486.8,2486.7,3.59175]
[1747680774625,4.02115459,2486.9,2486.7,12.56575]
[1747680774839,4.02115459,2486.9,2486.8,8.0]
[1747680775258,4.02084398,2487.1,2486.8,11.796325]
[1747680775560,4.02082683,2487.1,2486.8,11.796325]
[1747680775728,4.02088321,2487.1,2486.8,11.796325]
[1747680775929,4.0209882,2487.0,2486.8,11.796325]
[1747680776324,4.02029158,2487.4,2486.8,11.796325]
[1747680776530,5.65180416,2488.1,2487.1,1.6444]
[1747680776731,4.02035441,2487.4,2487.3,8.0]
[1747680776930,4.02026212,2487.4,2487.3,25.36]
[1747680777862,4.02026212,2487.4,2487.3,34.334]
[1747680779247,4.02026212,2487.4,2487.3,26.334]
[1747680779763,5.37429959,2487.4,2487.3,17.36]
[1747680779963,5.37429959,2487.4,2487.3,26.334]
[1747680780449,13.37429959,2487.4,2487.3,26.334]
[1747680780642,4.02155553,2486.6,2486.5,1.5516]
[1747680780842,4.02155553,2486.6,2486.5,10.5256]
[1747680781236,4.57155553,2486.6,2486.5,8.974]
[1747680781432,4.02220255,2486.2,2486.1,0.05]
[1747680781679,4.02220255,2486.2,2486.1,26.383]
[1747680781863,4.02212131,2486.3,2486.1,26.383]
[1747680782044,4.02187902,2486.4,2486.1,26.383]
[1747680782247,8.0,2487.2,2486.2,1.624]
[1747680782445,4.0214202,2486.7,2486.2,8.28441713]
[1747680782937,4.02140692,2486.7,2486.4,1.5871]
[1747680783369,4.0212742,2486.8,2486.4,1.5871]
[1747680783552,4.02058247,2487.3,2486.4,1.5871]
[1747680783553,4.02109146,2486.9,2486.4,5.6088569]
[1747680783748,4.02109146,2486.9,2486.5,0.96308437]
[1747680784082,4.02109146,2486.9,2486.6,8.975]
[1747680784281,4.02093241,2487.0,2486.6,8.975]
[1747680784437,4.02110426,2486.9,2486.7,1.5114]
[1747680784647,4.02110426,2486.9,2486.7,2.65634844]
[1747680785139,4.0212321,2486.8,2486.7,2.65634844]
[1747680785461,4.0212321,2486.8,2486.7,1.5114]
[1747680785853,4.02139381,2486.7,2486.6,8.975]
[1747680786560,4.02187902,2486.4,2486.3,18.9088]
[1747680786757,4.02187902,2486.4,2486.3,27.8838]
[1747680787573,4.02187902,2486.4,2486.3,26.335]
[1747680788148,4.02187902,2486.4,2486.3,17.36]
[1747680788351,6.95894203,2486.4,2486.3,26.298]
[1747680789149,4.02187902,2486.4,2486.3,26.298]
[1747680789455,4.57187902,2486.4,2486.3,26.298]
[1747680790051,6.16977902,2486.4,2486.3,26.298]
[1747680791760,4.02187902,2486.4,2486.3,26.298]
[1747680794768,4.57187902,2486.4,2486.3,26.298]
[1747680794943,5.43124203,2486.4,2486.3,26.299]
[1747680795280,4.02094304,2487.0,2486.3,26.299]
[1747680795281,1.5135,2487.0,2486.3,26.299]
[1747680795453,4.02074705,2487.1,2486.3,26.299]
[1747680795653,4.02136762,2486.8,2486.4,1.5553]
[1747680795869,0.22062977,2487.4,2486.4,1.5553]
[1747680796043,0.22062977,2487.4,2486.9,4.02094765]
[1747680796044,4.24097295,2487.4,2486.9,4.02094765]
[1747680796248,0.22062977,2487.4,2487.1,1.5553]
[1747680796452,4.02026693,2487.4,2487.2,26.304]
[1747680796769,4.02010667,2487.5,2487.2,26.304]
[1747680796975,4.02026301,2487.4,2487.2,26.304]
[1747680797276,0.47059935,2487.6,2487.3,2.78593]
[1747680797477,4.490546,2487.6,2487.4,1.6061]
[1747680797859,0.47059935,2487.6,2487.4,1.6061]
[1747680799374,0.47059935,2487.6,2487.4,13.62626054]
[1747680799562,0.47059935,2487.6,2487.5,1.64121905]
[1747680799764,4.49053824,2487.6,2487.5,1.64121905]
[1747680799967,4.0201005,2487.5,2487.4,1.6061]
[1747680800269,4.0201005,2487.5,2487.4,8.938]
[1747680800472,4.02042375,2487.3,2487.2,17.364]
[1747680800672,4.02042375,2487.3,2487.2,26.302]
[1747680801192,4.02042375,2487.3,2487.2,26.301]
[1747680801779,4.824495,2487.3,2487.2,26.301]
[1747680801962,4.02042375,2487.3,2487.2,26.301]
[1747680803753,1.97271436,2487.8,2487.2,27.943]
[1747680803954,4.01996763,2487.6,2487.2,27.943]
[1747680804181,4.01993889,2487.6,2487.2,27.943]
[1747680804352,5.9924188,2487.8,2487.2,27.943]
[1747680804551,5.99240211,2487.8,2487.4,1.642]
[1747680804786,5.99240211,2487.8,2487.5,8.937]
[1747680805081,4.01993889,2487.6,2487.5,8.937]
[1747680805555,4.02042375,2487.3,2487.2,17.364]
[1747680805755,4.02042375,2487.3,2487.2,26.301]
[1747680806172,4.02024188,2487.5,2487.2,26.301]
[1747680806377,4.02025553,2487.5,2487.2,29.09163]
[1747680806766,4.02000101,2487.6,2487.2,29.09163]
[1747680806985,4.02010342,2487.5,2487.2,29.09163]
[1747680807354,4.01995536,2487.6,2487.3,5.470009]
[1747680807589,1.97271436,2487.8,2487.3,1.5465]
[1747680807885,4.02026212,2487.4,2487.3,1.5465]
[1747680808065,4.02026212,2487.4,2487.3,10.4835]
[1747680808267,4.02026212,2487.4,2487.3,8.937]
[1747680809067,4.57026212,2487.4,2487.3,8.937]
[1747680809385,4.57026212,2487.4,2486.6,8.0]
[1747680809386,4.02139381,2486.7,2486.6,1.5407]
[1747680809585,4.02155553,2486.6,2486.5,17.359]
[1747680810111,4.02155553,2486.6,2486.5,8.937]
[1747680810290,5.53074046,2486.6,2486.5,8.937]
[1747680810605,4.02220255,2486.2,2486.1,8.987]
[1747680810955,4.57220255,2486.2,2486.1,8.987]
[1747680811681,4.57220255,2486.2,2486.1,9.32277998]
[1747680811857,6.18080255,2486.2,2486.1,0.38577998]
[1747680812052,7.20108951,2486.2,2486.1,0.38577998]
[1747680812855,4.57220255,2486.2,2486.1,0.38577998]
[1747680813070,5.54870255,2486.2,2486.1,0.38577998]
[1747680813360,5.54870255,2486.2,2485.1,0.1]
[1747680813361,4.02382102,2485.2,2485.1,0.1]
[1747680814470,4.02382102,2485.2,2485.1,9.039]
[1747680814891,4.02382102,2485.2,2485.1,10.10172]